bitfinex/quotes_SOLUSD_20251204
["timestamp","ask_amount","ask_price","bid_price","bid_amount"]
[1764890186675,3.48576941,139.16,139.13,15.08727106]
[1764890186880,3.48576941,139.16,139.13,15.76727106]
[1764890187189,10.67182181,139.16,139.13,15.76727106]
[1764890187571,9.96182181,139.16,139.14,0.68]
[1764890188089,10.67144318,139.17,139.14,0.68]
[1764890188587,18.67046782,139.2,139.14,7.86693866]
[1764890188792,14.76805282,139.19,139.14,7.86693866]
[1764890188978,9.96036285,139.19,139.15,0.68]
[1764890189184,9.96036285,139.19,139.16,7.9]
[1764890189589,10.67036285,139.19,139.16,7.9]
[1764890189891,10.67036285,139.19,139.16,8.58]
[1764890190892,2.77576941,139.18,139.16,8.58]
[1764890191186,2.77576941,139.18,139.17,0.68]
[1764890191567,9.96036285,139.19,139.17,0.68]
[1764890192184,7.18459344,139.19,139.17,0.68]
[1764890193292,7.18408944,139.2,139.17,0.68]
[1764890193809,7.18342766,139.21,139.17,7.86535128]
[1764890194019,7.18342766,139.21,139.18,0.68]
[1764890197610,7.18287602,139.22,139.18,0.68]
[1764890197809,12.70050404,139.22,139.18,0.68]
[1764890199407,32.7234635,139.22,139.18,0.68]
[1764890199584,25.85006607,139.22,139.18,0.68]
[1764890199785,28.62583548,139.22,139.18,0.68]
[1764890202503,30.18572249,139.22,139.18,0.68]
[1764890204115,7.18377736,139.21,139.18,5.01565642]
[1764890204480,7.18377736,139.21,139.19,0.7]
[1764890206005,29.47791377,139.21,139.16,15.08584996]
[1764890206189,29.47791377,139.21,139.14,24.46027649]
[1764890206190,4.33565642,139.19,139.14,31.64714371]
[1764890206390,4.33565642,139.19,139.15,8.6]
[1764890206704,0.68,139.18,139.15,8.6]
[1764890207304,7.865335,139.18,139.15,8.6]
[1764890207506,7.865335,139.18,139.16,0.7]
[1764890208311,7.185335,139.18,139.16,0.7]
[1764890211804,12.20008058,139.19,139.16,0.7]
[1764890214598,7.86442416,139.19,139.16,0.7]
[1764890215918,7.18442416,139.19,139.16,0.7]
[1764890216219,7.86442416,139.19,139.16,0.7]
[1764890216818,7.18442416,139.19,139.16,0.7]
[1764890218417,7.86442416,139.19,139.16,0.7]
[1764890222129,5.01565642,139.18,139.15,7.9]
[1764890222426,4.33565642,139.16,139.12,21.5695438]
[1764890222611,4.8171013,139.17,139.13,7.88749132]
[1764890222810,4.33565642,139.17,139.13,7.88749132]
[1764890223008,9.83275772,139.17,139.14,0.7]
[1764890223208,5.01565642,139.17,139.14,0.7]
[1764890223410,5.01565642,139.16,139.12,15.7878056]
[1764890223918,12.20186039,139.16,139.13,0.7]
[1764890225809,4.33565642,139.16,139.13,0.7]
[1764890226009,5.01565642,139.16,139.13,0.7]
[1764890226222,5.01565642,139.15,139.12,7.9]
[1764890226415,4.33565642,139.14,139.12,8.6]
[1764890226602,5.01565642,139.14,139.12,7.9]
[1764890226804,4.33565642,139.14,139.12,8.6]
[1764890227111,5.01565642,139.14,139.12,7.9]
[1764890230326,5.01565642,139.13,139.12,7.9]
[1764890231903,0.68,139.13,139.12,7.9]
[1764890233930,0.68,139.13,139.1,40.48819867]
[1764890234113,0.68,139.13,139.11,7.9]
[1764890234924,11.5227045,139.14,139.11,8.58]
[1764890235123,12.2327045,139.14,139.11,8.58]
[1764890236011,12.2327045,139.14,139.11,15.08845246]
[1764890236213,17.96600687,139.16,139.12,0.68]
[1764890236214,7.18668527,139.15,139.12,0.68]
[1764890236530,17.96293773,139.18,139.12,0.68]
[1764890236837,4.80246222,139.17,139.13,4.33565642]
[1764890237029,4.80246222,139.17,139.14,7.9]
[1764890237229,4.80246222,139.17,139.14,8.58]
[1764890237431,4.80246222,139.17,139.15,0.68]
[1764890239039,12.23059678,139.18,139.15,0.68]
[1764890239840,4.80263339,139.17,139.15,0.68]
[1764890240638,9.84828981,139.17,139.15,0.68]
[1764890240944,17.03378005,139.17,139.15,0.68]
[1764890241240,11.52114666,139.17,139.15,0.68]
[1764890242519,7.18549024,139.17,139.15,0.68]
[1764890242833,11.98872033,139.17,139.15,0.68]
[1764890243039,11.98872033,139.17,139.14,7.9]
[1764890243040,5.04565642,139.16,139.14,7.9]
[1764890244241,12.23180316,139.16,139.14,7.9]
[1764890246144,5.04565642,139.16,139.14,8.58]
[1764890246340,0.71,139.16,139.14,8.58]
[1764890246521,11.52134541,139.17,139.14,8.58]
[1764890246721,0.71,139.16,139.14,8.58]
[1764890247425,11.52134541,139.17,139.14,8.58]
[1764890247747,7.18511981,139.18,139.15,0.68]
[1764890247938,0.71,139.19,139.15,5.01565642]
[1764890247939,11.98930679,139.19,139.15,5.01565642]
[1764890248137,7.18462297,139.19,139.15,5.01565642]
[1764890248325,7.18462297,139.19,139.16,0.68]
[1764890249840,7.18462297,139.19,139.16,7.86588034]
[1764890250037,7.18462297,139.19,139.17,0.68]
[1764890255828,11.51978983,139.2,139.17,0.68]
[1764890256752,12.22978983,139.2,139.17,0.68]
[1764890262555,10.66971419,139.2,139.17,0.68]
[1764890264754,7.18454785,139.19,139.17,0.69]
[1764890264929,18.64891836,139.21,139.17,0.69]
[1764890265135,11.99413785,139.2,139.17,0.69]
[1764890265548,15.45971863,139.2,139.17,0.69]
[1764890265748,10.64948882,139.2,139.17,0.69]
[1764890265949,10.64948882,139.2,139.17,7.87540213]
[1764890266450,10.64948882,139.2,139.18,0.69]
[1764890267639,10.64948882,139.2,139.17,15.77540213]
[1764890269056,0.69,139.19,139.17,7.9]
[1764890269254,2.77558078,139.18,139.17,7.9]
[1764890269452,2.77558078,139.18,139.13,21.43309551]
[1764890269757,2.77558078,139.14,139.12,7.9]
[1764890270134,3.46558078,139.13,139.12,7.9]
[1764890270460,3.46558078,139.13,139.11,7.9]
[1764890270852,2.77558078,139.12,139.11,7.9]
[1764890271851,3.46558078,139.13,139.11,7.9]
[1764890272648,3.46558078,139.13,139.1,40.67395775]
[1764890274369,3.46558078,139.13,139.11,7.18853621]
[1764890276673,3.46558078,139.12,139.1,40.67385467]
[1764890276852,3.46558078,139.12,139.1,39.98385467]
[1764890277053,2.77558078,139.12,139.1,40.67385467]
[1764890277357,3.46558078,139.12,139.1,39.98385467]
[1764890277668,3.46558078,139.12,139.1,40.67385467]
[1764890277868,2.77558078,139.12,139.1,40.67385467]
[1764890278173,0.69,139.13,139.1,40.67385467]
[1764890278366,2.77558078,139.13,139.11,0.69]
[1764890278874,2.77558078,139.13,139.11,7.87815895]
[1764890279073,3.46558078,139.14,139.11,7.87815895]
[1764890280552,3.46558078,139.14,139.12,0.69]
[1764890280959,3.46558078,139.14,139.11,7.87815895]
[1764890281774,2.77558078,139.13,139.12,7.1880391]
[1764890285981,2.77558078,139.13,139.11,0.69]
[1764890286185,3.46558078,139.13,139.11,7.188425]
[1764890286678,2.77558078,139.13,139.11,7.878425]
[1764890286870,2.77558078,139.14,139.12,0.69]
[1764890287268,7.57638072,139.16,139.12,11.36558078]
[1764890287578,3.46558078,139.16,139.12,11.36558078]
[1764890287760,3.46558078,139.16,139.13,0.69]
[1764890288759,3.46558078,139.16,139.13,7.87722383]
[1764890289164,2.77558078,139.16,139.13,7.87722383]
[1764890289367,3.46558078,139.15,139.13,7.87722383]
[1764890292463,2.77558078,139.15,139.13,7.87722383]
[1764890293169,2.77558078,139.15,139.13,7.84722383]
[1764890293670,3.45558078,139.15,139.13,7.84722383]
[1764890294070,2.77558078,139.15,139.13,7.84722383]
[1764890294270,10.64163325,139.16,139.13,7.84722383]
[1764890298875,48.01532683,139.23,139.15,2.77558078]
[1764890298876,10.63968677,139.2,139.15,2.77558078]
[1764890299085,10.63968677,139.2,139.16,10.67558078]
[1764890299281,2.77558078,139.22,139.17,2.77558078]
[1764890299486,0.68,139.22,139.18,3.43558078]
[1764890299676,7.86287602,139.22,139.18,3.43558078]
[1764890299872,12.66718106,139.22,139.19,0.66]
[1764890301697,7.18306316,139.22,139.19,11.33558078]
[1764890302101,11.9861972,139.23,139.2,0.66]
[1764890302300,7.18258048,139.23,139.2,0.66]
[1764890303399,3.45558078,139.22,139.19,7.9]
[1764890303597,3.45558078,139.22,139.19,8.56]
[1764890303794,2.77558078,139.22,139.19,7.9]
[1764890304106,28.59406156,139.23,139.2,0.66]
[1764890304292,25.13848078,139.23,139.2,0.66]
[1764890304794,25.81848078,139.23,139.2,0.66]
[1764890306607,2.77558078,139.21,139.19,7.9]
[1764890306976,3.45558078,139.21,139.19,7.9]
[1764890307401,25.13848078,139.23,139.15,2.77558078]
[1764890307402,3.45558078,139.2,139.15,2.77558078]
[1764890307586,3.45558078,139.2,139.16,7.9]
[1764890307795,0.68,139.19,139.16,8.56]
[1764890308302,0.68,139.19,139.16,7.9]
[1764890308508,7.18494036,139.18,139.16,7.9]
[1764890308686,9.96052114,139.18,139.16,7.9]
[1764890308882,10.64052114,139.18,139.16,7.9]
[1764890309998,7.86494036,139.18,139.16,7.9]
[1764890314811,7.18494036,139.18,139.16,8.56]
[1764890315615,9.96052114,139.18,139.16,8.56]
[1764890316192,7.18494036,139.18,139.17,0.66]
[1764890318120,25.14641795,139.19,139.17,0.66]
[1764890318286,25.82641795,139.19,139.17,0.66]
[1764890318490,25.82641795,139.19,139.16,7.9]
[1764890318698,25.82641795,139.19,139.16,8.56]
[1764890319714,28.60199873,139.19,139.16,8.56]
[1764890321396,28.60199873,139.19,139.14,0.66]
[1764890321397,3.45558078,139.18,139.14,0.66]
[1764890321596,7.18545663,139.17,139.15,7.9]
[1764890321903,10.64103741,139.17,139.15,7.9]
[1764890322608,12.20419664,139.17,139.15,7.9]
[1764890324409,5.00874001,139.16,139.11,7.18834412]
[1764890324608,5.00874001,139.16,139.12,8.58]
[1764890325115,5.00874001,139.16,139.13,0.68]
[1764890326309,7.18648939,139.15,139.13,0.68]
[1764890330832,7.18590171,139.17,139.13,5.01874001]
[1764890331136,7.18590171,139.17,139.13,12.20618439]
[1764890331312,11.98664883,139.17,139.14,0.68]
[1764890332014,12.65664883,139.17,139.14,0.68]
[1764890332319,7.85590171,139.17,139.14,0.68]
[1764890332518,12.19464172,139.17,139.14,0.68]
[1764890334515,7.85590171,139.17,139.14,0.68]
[1764890334717,12.19464172,139.17,139.14,0.68]
[1764890340922,7.18590171,139.17,139.14,0.68]
[1764890341242,16.99648348,139.17,139.14,0.68]
[1764890341424,4.33874001,139.15,139.1,33.47496684]
[1764890341613,5.47167474,139.16,139.09,0.68]
[1764890341614,4.33874001,139.12,139.09,0.68]
[1764890341940,4.33874001,139.13,139.09,8.58]
[1764890342128,5.00874001,139.13,139.09,7.9]
[1764890342330,5.00874001,139.13,139.1,0.68]
[1764890342842,4.80167474,139.15,139.1,7.86900084]
[1764890342843,4.33874001,139.14,139.1,7.86900084]
[1764890343027,4.33874001,139.14,139.1,25.84168236]
[1764890343223,4.33874001,139.14,139.11,0.68]
[1764890343435,5.00874001,139.14,139.11,0.68]
[1764890344942,4.33874001,139.14,139.12,7.1880391]
[1764890345342,4.33874001,139.14,139.12,7.8680391]
[1764890345721,4.33874001,139.15,139.13,0.68]
[1764890345920,5.00874001,139.15,139.12,7.8680391]
[1764890346123,5.00874001,139.15,139.12,15.7680391]
[1764890348521,4.33874001,139.15,139.12,15.0880391]
[1764890348723,5.00874001,139.14,139.12,15.0880391]
[1764890349249,5.00874001,139.14,139.12,7.9]
[1764890349432,5.00874001,139.14,139.12,15.08802316]
[1764890350024,0.67,139.14,139.12,15.08802316]
[1764890350224,4.33874001,139.15,139.13,0.68]
[1764890350435,5.00874001,139.15,139.12,15.76802316]
[1764890350927,9.81190904,139.15,139.12,15.76802316]
[1764890352447,9.81190904,139.15,139.12,15.08802316]
[1764890352745,4.80316903,139.15,139.13,7.86748459]
[1764890352954,4.33874001,139.18,139.13,25.83629074]
[1764890353126,9.14599327,139.18,139.14,0.67]
[1764890353326,9.85599327,139.18,139.14,0.67]
[1764890354223,17.04101146,139.18,139.14,0.67]
[1764890354420,4.80725326,139.17,139.14,0.67]
[1764890354629,4.80725326,139.17,139.14,7.85678084]
[1764890355021,4.80725326,139.17,139.15,0.67]
[1764890355550,11.99271947,139.17,139.15,0.67]
[1764890357441,7.18546621,139.17,139.15,0.67]
[1764890357651,11.98942952,139.17,139.15,0.67]
[1764890357951,9.38748002,139.16,139.09,16.978864]
[1764890358253,4.33874001,139.12,139.09,8.57]
[1764890358628,4.33874001,139.12,139.1,0.67]
[1764890358953,9.14156678,139.13,139.1,0.67]
[1764890359154,4.33874001,139.12,139.1,0.67]
[1764890359653,11.52723092,139.12,139.1,0.67]
[1764890360353,4.33874001,139.12,139.1,0.67]
[1764890361650,4.33874001,139.12,139.09,15.08948186]
[1764890361840,5.04874001,139.12,139.09,15.75948186]
[1764890363643,4.33874001,139.12,139.09,15.08948186]
[1764890363948,4.33874001,139.12,139.1,0.67]
[1764890364552,5.04874001,139.13,139.1,0.67]
[1764890365057,5.04874001,139.13,139.11,7.18855581]
[1764890366135,9.84555068,139.14,139.1,25.16175412]
[1764890366341,132.20247264,139.17,139.1,25.16175412]
[1764890366342,4.33874001,139.15,139.12,0.67]
[1764890367456,4.33874001,139.13,139.1,7.1890726]
[1764890367660,4.33874001,139.12,139.1,7.1890726]
[1764890367845,4.33874001,139.12,139.09,8.57]
[1764890367846,5.04874001,139.12,139.09,15.75943623]
[1764890368245,0.71,139.12,139.09,15.75943623]
[1764890368443,0.71,139.13,139.1,0.67]
[1764890368738,4.33874001,139.12,139.09,33.06340991]
[1764890368958,4.33874001,139.12,139.1,0.67]
[1764890369741,4.33874001,139.12,139.1,7.85875717]
[1764890370967,5.04874001,139.12,139.1,7.18875717]
[1764890375158,5.04874001,139.12,139.1,7.85875717]
[1764890375346,4.33874001,139.12,139.1,7.85875717]
[1764890375545,4.79408613,139.13,139.11,0.67]
[1764890375773,9.13282614,139.14,139.11,0.67]
[1764890376152,4.33874001,139.14,139.11,0.67]
[1764890376859,5.04874001,139.14,139.11,0.67]
[1764890378751,5.04874001,139.14,139.12,7.1880391]
[1764890380379,4.33874001,139.13,139.12,7.1880391]
[1764890380976,5.04874001,139.14,139.12,7.1880391]
[1764890382252,9.12693702,139.15,139.13,0.67]
[1764890382456,4.33874001,139.16,139.13,0.67]
[1764890383464,5.05874001,139.16,139.13,0.67]
[1764890383658,4.33874001,139.16,139.12,7.9]
[1764890383860,5.05874001,139.15,139.12,8.59]
[1764890384276,12.24531558,139.15,139.12,8.59]
[1764890384482,10.68422766,139.15,139.12,8.59]
[1764890385661,10.68422766,139.15,139.12,7.9]
[1764890385662,7.56888006,139.14,139.12,7.9]
[1764890386058,0.72,139.13,139.12,7.9]
[1764890386480,14.75604804,139.14,139.12,7.9]
[1764890386662,10.68482007,139.14,139.12,7.9]
[1764890387870,10.68482007,139.14,139.1,15.0890726]
[1764890388071,9.96482007,139.14,139.11,0.69]
[1764890388269,10.68482007,139.14,139.11,0.69]
[1764890388884,3.49765209,139.14,139.11,0.69]
[1764890389195,8.29025463,139.14,139.11,0.69]
[1764890390175,4.79260254,139.14,139.11,7.87809592]
[1764890390380,4.79260254,139.15,139.11,7.87809592]
[1764890390571,4.79260254,139.15,139.12,0.69]
[1764890391264,4.79260254,139.15,139.12,7.87771366]
[1764890392387,5.51260254,139.15,139.12,7.87771366]
[1764890393794,4.79260254,139.15,139.13,0.69]
[1764890394107,4.79260254,139.15,139.13,7.87750617]
[1764890394990,7.57025463,139.15,139.13,7.87750617]
[1764890396291,4.79260254,139.15,139.11,25.15994535]
[1764890396492,4.79260254,139.15,139.14,0.69]
[1764890396671,4.79260254,139.15,139.12,0.69]
[1764890397875,15.4768098,139.15,139.12,0.69]
[1764890398075,10.68420726,139.15,139.12,0.69]
[1764890398381,10.68420726,139.15,139.11,7.18855581]
[1764890398382,8.29193901,139.14,139.11,7.18855581]
[1764890398561,8.29193901,139.14,139.11,7.87855581]
[1764890399615,2.77765209,139.13,139.07,26.12745188]
[1764890399775,2.77765209,139.11,139.08,7.8797761]
[1764890400089,7.57193901,139.12,139.08,7.8797761]
[1764890400267,8.29193901,139.12,139.09,0.69]
[1764890400467,10.68586431,139.12,139.09,0.69]
[1764890401293,0.72,139.11,139.07,15.78053535]
[1764890401590,5.51408408,139.11,139.08,7.88000414]
[1764890401790,10.68586431,139.12,139.09,7.18958838]
[1764890402085,8.29162501,139.11,139.08,7.87981951]
[1764890404280,0.72,139.11,139.08,7.87981951]
[1764890404482,3.49765209,139.11,139.08,7.87981951]
[1764890404797,8.29073291,139.11,139.08,7.87981951]
[1764890405094,3.49765209,139.11,139.08,7.87981951]
[1764890405297,2.77765209,139.1,139.08,7.87981951]
[1764890405594,8.2907313,139.11,139.08,7.87981951]
[1764890405798,3.49765209,139.11,139.08,7.87981951]
[1764890406290,8.29049988,139.11,139.08,7.87981951]
[1764890406493,0.72,139.1,139.08,7.18981951]
[1764890406796,2.77765209,139.09,139.06,0.1]
[1764890406994,2.77765209,139.08,139.06,7.29084041]
[1764890407201,0.72,139.07,139.06,7.29084041]
[1764890407380,2.77765209,139.08,139.06,7.98084041]
[1764890409999,2.77765209,139.08,139.06,7.29084041]
[1764890410199,3.49765209,139.08,139.06,7.29084041]
[1764890410803,3.49765209,139.09,139.06,25.95869169]
[1764890412499,7.565351,139.11,139.07,0.69]
[1764890412803,2.77765209,139.11,139.08,7.9]
[1764890413298,2.77765209,139.11,139.08,8.57]
[1764890413505,3.44765209,139.11,139.08,8.57]
[1764890414186,2.77765209,139.11,139.09,0.67]
[1764890414392,7.565351,139.12,139.1,7.1890726]
[1764890414620,2.77765209,139.11,139.1,7.1890726]
[1764890414801,3.44765209,139.11,139.1,7.1890726]
[1764890416397,2.77765209,139.11,139.09,25.16228803]
[1764890416596,2.77765209,139.11,139.09,25.83228803]
[1764890416791,3.44765209,139.12,139.09,25.83228803]
[1764890419906,2.77765209,139.12,139.11,7.18855581]
[1764890420109,5.45769891,139.13,139.11,7.18855581]
[1764890420110,4.78769891,139.13,139.11,7.18855581]
[1764890420287,7.56847368,139.14,139.12,0.67]
[1764890421197,2.77765209,139.16,139.12,8.57]
[1764890421394,7.56950602,139.16,139.13,0.67]
[1764890421600,7.56950602,139.16,139.12,7.9]
[1764890421801,3.44765209,139.15,139.12,8.57]
[1764890422009,3.44765209,139.15,139.12,7.9]
[1764890422324,3.44765209,139.15,139.13,7.18752246]
[1764890422812,8.23950602,139.15,139.13,7.18752246]
[1764890422992,2.77765209,139.14,139.12,15.75797707]
[1764890423196,8.23950602,139.15,139.12,15.75797707]
[1764890423717,7.56950602,139.15,139.12,15.08797707]
[1764890423893,7.56950602,139.15,139.13,0.67]
[1764890424218,8.23950602,139.15,139.12,15.75797707]
[1764890424903,15.42642562,139.15,139.12,8.57]
[1764890425102,10.63457169,139.15,139.12,8.57]
[1764890425818,28.60079518,139.15,139.12,8.57]
[1764890427693,0.67,139.14,139.12,7.9]
[1764890427908,5.46510896,139.14,139.11,0.67]
[1764890428218,4.79510896,139.14,139.11,0.67]
[1764890429289,7.18752246,139.13,139.11,0.67]
[1764890431722,7.18700589,139.14,139.11,0.67]
[1764890433499,7.85700589,139.14,139.11,0.67]
[1764890433798,7.18700589,139.14,139.11,0.67]
[1764890435129,7.85700589,139.14,139.11,0.67]
[1764890435940,29.95462898,139.14,139.11,0.67]
[1764890436117,8.24781778,139.13,139.1,7.9]
[1764890436424,2.77765209,139.11,139.08,0.67]
[1764890436633,41.46338462,139.14,139.07,8.57]
[1764890436634,2.77765209,139.1,139.07,8.57]
[1764890437012,2.77765209,139.1,139.08,0.67]
[1764890438134,3.44765209,139.09,139.06,0.77]
[1764890438308,2.77765209,139.08,139.06,0.1]
[1764890438506,3.44765209,139.08,139.06,0.1]
[1764890440817,2.77765209,139.08,139.06,0.77]
[1764890441022,3.44765209,139.09,139.06,0.77]
[1764890442031,3.44765209,139.09,139.06,7.96073115]
[1764890444434,5.01385122,139.09,139.06,7.96073115]
[1764890447016,4.34385122,139.08,139.06,7.96073115]
[1764890447405,5.01385122,139.09,139.06,25.93858243]
[1764890449137,4.34385122,139.09,139.06,25.93858243]
[1764890449325,5.05385122,139.09,139.06,25.93858243]
[1764890454139,5.05385122,139.09,139.06,25.98858243]
[1764890454638,5.05385122,139.09,139.06,25.26858243]
[1764890454814,5.05385122,139.09,139.06,25.98858243]
[1764890455435,4.34385122,139.11,139.07,0.72]
[1764890455638,4.34385122,139.11,139.07,8.62]
[1764890455639,4.34385122,139.1,139.07,8.62]
[1764890457338,4.34385122,139.1,139.08,7.91010641]
[1764890457738,5.05385122,139.1,139.08,7.91010641]
[1764890459255,4.34385122,139.1,139.08,7.91010641]
[1764890459937,5.05385122,139.1,139.08,7.19010641]
[1764890460128,4.34385122,139.09,139.08,7.19010641]
[1764890460633,5.05385122,139.09,139.07,7.19025209]
[1764890460853,5.05385122,139.08,139.06,0.1]
[1764890461021,4.34385122,139.07,139.06,0.1]
[1764890461419,5.05385122,139.07,139.06,0.1]
[1764890462337,4.34385122,139.07,139.06,0.1]
[1764890464130,5.05385122,139.07,139.06,0.1]
[1764890465644,4.34385122,139.07,139.06,0.1]
[1764890466516,5.05385122,139.07,139.06,0.1]
[1764890467036,21.05441956,139.07,139.06,0.1]
[1764890467240,25.8471284,139.07,139.06,0.1]
[1764890475530,18.65650498,139.07,139.06,0.1]
[1764890476433,25.8471284,139.07,139.06,0.1]
[1764890477733,4.79270884,139.07,139.06,0.82]
[1764890478046,4.34385122,139.08,139.06,0.82]
[1764890478244,4.34385122,139.09,139.06,0.82]
[1764890478431,4.34385122,139.08,139.06,0.82]
[1764890478631,5.02385122,139.08,139.06,0.1]
[1764890478828,4.34385122,139.07,139.06,0.1]
[1764890479748,5.02385122,139.07,139.06,0.1]
[1764890479954,7.87030379,139.08,139.06,0.1]
[1764890480156,4.34385122,139.07,139.06,0.1]
[1764890481961,7.86950152,139.1,139.06,0.82]
[1764890482182,9.1435025,139.09,139.06,0.82]
[1764890482347,4.34385122,139.08,139.06,0.82]
[1764890484138,9.1435025,139.08,139.06,0.82]
[1764890484469,9.1435025,139.08,139.06,8.01111022]
[1764890485670,9.1435025,139.08,139.06,7.29111022]
[1764890485872,4.34385122,139.08,139.06,7.29111022]
[1764890486069,4.34385122,139.08,139.06,8.01111022]
[1764890486248,4.34385122,139.08,139.07,0.72]
[1764890487374,4.34385122,139.08,139.06,8.01111022]
[1764890488341,4.34385122,139.08,139.06,0.82]
[1764890489055,11.53406454,139.08,139.06,0.82]
[1764890491262,29.50933057,139.08,139.06,0.82]
[1764890492165,25.16547935,139.08,139.06,0.82]
[1764890493674,7.19021332,139.08,139.06,0.82]
[1764890499756,12.21406454,139.08,139.06,0.1]
[1764890500279,4.34385122,139.07,139.06,0.1]
[1764890501075,4.34385122,139.07,139.06,0.82]
[1764890501580,11.99478446,139.07,139.06,0.82]
[1764890501876,7.19062342,139.07,139.06,0.82]
[1764890502262,11.53447464,139.07,139.06,0.1]
[1764890502569,16.33888878,139.07,139.06,0.1]
[1764890502974,17.05888878,139.07,139.06,0.1]
[1764890504071,16.33888878,139.07,139.06,0.1]
[1764890504750,4.80441414,139.07,139.06,0.1]
[1764890504954,4.80441414,139.07,139.06,0.76]
[1764890505162,11.53368095,139.09,139.06,0.76]
[1764890505366,4.80631749,139.08,139.06,0.76]
[1764890507751,7.18932467,139.1,139.06,7.95105035]
[1764890507957,4.80619378,139.09,139.07,0.66]
[1764890508358,7.18819478,139.12,139.07,3.44016385]
[1764890508565,4.80645651,139.11,139.08,3.44016385]
[1764890508759,4.80645651,139.11,139.09,0.66]
[1764890509360,7.18819478,139.12,139.09,0.66]
[1764890509361,11.99465129,139.12,139.09,0.66]
[1764890510177,2.78016385,139.11,139.09,0.66]
[1764890510781,7.58409116,139.11,139.09,0.66]
[1764890511280,8.30409116,139.1,139.07,0.66]
[1764890511583,7.58409116,139.09,139.07,0.66]
[1764890511775,7.19010641,139.08,139.07,0.66]
[1764890512880,7.18981213,139.09,139.07,0.66]
[1764890513388,7.18908144,139.1,139.07,0.66]
[1764890513585,11.99221913,139.11,139.07,7.85037663]
[1764890514087,11.99221913,139.11,139.08,0.66]
[1764890514977,11.99249226,139.1,139.08,0.66]
[1764890515178,7.18907657,139.1,139.08,0.66]
[1764890515574,11.99269261,139.11,139.08,0.66]
[1764890516990,7.18888202,139.11,139.08,0.66]
[1764890517570,7.18888202,139.11,139.08,7.85009597]
[1764890517993,7.18888202,139.11,139.09,0.66]
[1764890518380,11.99251971,139.12,139.09,0.66]
[1764890520392,15.49268356,139.12,139.09,0.66]
[1764890520596,10.6884003,139.12,139.09,0.66]
[1764890520895,2.78016385,139.1,139.06,25.15979722]
[1764890521070,2.78016385,139.08,139.06,8.66]
[1764890521272,7.58437181,139.09,139.06,8.0]
[1764890521480,2.78016385,139.09,139.06,8.0]
[1764890521681,3.50016385,139.09,139.06,8.66]
[1764890521881,8.30437181,139.09,139.06,8.66]
[1764890522076,3.50016385,139.09,139.06,8.66]
[1764890522282,10.69026235,139.09,139.06,8.66]
[1764890522994,2.78016385,139.07,139.06,0.1]
[1764890523202,7.58471315,139.07,139.06,0.1]
[1764890523499,8.30471315,139.07,139.06,0.1]
[1764890523892,3.50016385,139.07,139.06,0.1]
[1764890524092,8.30471315,139.07,139.06,0.1]
[1764890524493,10.69078727,139.07,139.06,0.1]
[1764890524796,7.58471315,139.07,139.06,0.1]
[1764890525684,4.8045493,139.07,139.06,0.76]
[1764890525884,4.80380429,139.08,139.06,0.76]
[1764890526600,7.58396814,139.09,139.06,0.76]
[1764890526781,4.80380429,139.09,139.06,7.95099623]
[1764890526977,7.58396814,139.09,139.06,7.95099623]
[1764890527298,7.58396814,139.09,139.07,0.66]
[1764890527701,4.80380429,139.09,139.07,0.66]
[1764890528001,7.58410264,139.1,139.07,0.66]
[1764890528398,7.58410264,139.1,139.07,7.85028152]
[1764890528604,7.58410264,139.1,139.08,0.66]
[1764890529373,4.80393879,139.1,139.08,0.66]
[1764890529575,2.78016385,139.12,139.08,0.66]
[1764890529795,7.58533181,139.12,139.08,0.66]
[1764890529980,4.80516796,139.12,139.08,0.66]
[1764890530179,7.58533181,139.12,139.08,0.66]
[1764890531183,7.58533181,139.12,139.09,7.18958947]
[1764890531581,2.78016385,139.11,139.09,0.66]
[1764890531902,2.78016385,139.1,139.08,0.66]
[1764890532110,7.58412119,139.1,139.08,0.66]
[1764890533725,2.78016385,139.12,139.08,7.85006292]
[1764890534187,7.5842521,139.12,139.09,0.71]
[1764890534390,2.78016385,139.11,139.09,0.71]